bitfinex/quotes_SOLUSD_20250126
["timestamp","ask_amount","ask_price","bid_price","bid_amount"]
[1737871898324,0.063,258.72,258.71,20.0]
[1737871898526,0.063,258.72,258.71,44.16325994]
[1737871899024,6.0731,258.84,258.72,23.776884]
[1737871899225,6.0731,258.84,258.76,23.776884]
[1737871899455,6.0731,258.84,258.8,23.776884]
[1737871899598,1.5391,258.88,258.8,23.776884]
[1737871900635,1.5391,258.88,258.81,3.8638]
[1737871901022,1.5391,258.88,258.76,3.8645]
[1737871901225,6.0731,258.87,258.72,3.8651]
[1737871901533,6.0731,258.87,258.73,23.776884]
[1737871901831,7.04769948,258.87,258.68,3.8657]
[1737871902337,7.04769948,258.87,258.72,20.0]
[1737871902697,14.5207,258.86,258.68,20.0]
[1737871902927,14.5207,258.86,258.69,23.776884]
[1737871903236,14.5207,258.86,258.72,20.0]
[1737871903442,13.5207,258.86,258.73,23.776884]
[1737871904942,20.0,258.82,258.66,3.866]
[1737871905140,1.5091,258.8,258.62,3.8666]
[1737871905440,6.0731,258.79,258.62,3.8666]
[1737871905748,1.97459948,258.78,258.57,2.62]
[1737871906047,3.8642,258.78,258.62,3.8666]
[1737871906550,3.8642,258.78,258.63,23.776884]
[1737871906927,4.8642,258.78,258.62,3.8666]
[1737871907221,1.0,258.76,258.55,6.4877]
[1737871907932,7.5822,258.77,258.63,23.776884]
[1737871908138,3.8645,258.76,258.63,23.776884]
[1737871909624,3.8645,258.76,258.63,27.643284]
[1737871911833,3.8945,258.76,258.63,27.643284]
[1737871917722,0.03,258.76,258.63,27.643284]
[1737871920161,0.03,258.76,258.67,27.642784]
[1737871921828,0.03,258.76,258.71,23.776884]
[1737871922049,0.03,258.76,258.75,43.776884]
[1737871922233,0.03,258.76,258.75,47.641584]
[1737871923547,7.8653,258.91,258.75,47.641584]
[1737871923746,7.8653,258.91,258.8,23.776884]
[1737871924754,7.8653,258.91,258.81,3.8638]
[1737871926731,11.7277,258.91,258.81,3.8638]
[1737871927053,11.7277,258.91,258.84,23.776884]
[1737871927549,11.7277,258.91,258.83,20.0]
[1737871927742,11.7277,258.91,258.84,23.776884]
[1737871931455,11.7277,258.91,258.77,3.8644]
[1737871931839,11.7277,258.91,258.82,23.776884]
[1737871933469,11.7277,258.91,258.75,3.8647]
[1737871933766,21.3835,258.91,258.76,20.0]
[1737871933967,21.3835,258.91,258.77,23.776884]
[1737871934170,21.3835,258.91,258.79,23.776884]
[1737871934670,21.3835,258.91,258.78,20.0]
[1737871935042,21.3835,258.91,258.79,20.0]
[1737871936939,21.3835,258.91,258.72,0.063]
[1737871936940,1.0,258.9,258.72,0.063]
[1737871937261,20.03,258.88,258.72,0.063]
[1737871937455,6.3741,258.87,258.72,0.063]
[1737871937668,1.5304,258.86,258.72,0.063]
[1737871938861,13.5213,258.85,258.72,0.063]
[1737871939958,6.3741,258.84,258.72,0.063]
[1737871940946,3.8635,258.83,258.72,0.063]
[1737871942054,8.9045,258.82,258.72,0.063]
[1737871943657,13.5233,258.81,258.72,0.063]
[1737871945364,1.0,258.8,258.72,0.063]
[1737871945556,3.8641,258.79,258.72,0.063]
[1737871946766,6.3741,258.78,258.72,0.063]
[1737871947361,7.3741,258.78,258.72,0.063]
[1737871947568,3.8645,258.76,258.72,0.063]
[1737871956386,20.0,258.73,258.72,0.063]
[1737871956594,20.0,258.72,258.6,0.063]
[1737871956884,6.1339,258.71,258.6,0.063]
[1737871957388,3.8654,258.7,258.6,0.063]
[1737871957761,1.6203,258.69,258.6,0.063]
[1737871958571,3.8657,258.68,258.6,0.063]
[1737871959506,13.5301,258.68,258.6,0.063]
[1737871960467,1.0,258.67,258.6,0.063]
[1737871960789,3.866,258.66,258.6,0.063]
[1737871961977,23.8657,258.68,258.6,0.063]
[1737871962163,20.0,258.66,258.6,0.063]
[1737871963760,6.1339,258.67,258.6,0.063]
[1737871964280,3.866,258.66,258.6,0.063]
[1737871976213,80.9,258.68,258.6,0.063]
[1737871976385,84.7659,258.68,258.6,0.063]
[1737871980187,91.48315251,258.68,258.6,0.063]
[1737871981499,6.71725251,258.64,258.6,0.063]
[1737871982810,10.58365251,258.64,258.6,0.063]
[1737871983107,6.71725251,258.62,258.6,0.063]
[1737871985209,3.8668,258.61,258.6,0.063]
[1737871991512,4.8668,258.61,258.6,0.063]
[1737871991713,29.61828348,258.61,258.6,0.0001]
[1737871992020,4.8668,258.61,258.6,0.0001]
[1737871994700,8.7987,258.61,258.6,0.0001]
[1737871995330,4.8668,258.61,258.6,0.0001]
[1737871996430,3.8668,258.61,258.6,0.0001]
[1737872006227,6.71725251,258.64,258.6,0.0001]
[1737872006735,6.71725251,258.62,258.6,0.0001]
[1737872010738,10.58395251,258.62,258.6,0.0001]
[1737872018637,10.61395251,258.62,258.6,0.0001]
[1737872020934,105.676884,258.61,258.6,0.0001]
[1737872021530,24.776884,258.61,258.6,0.0001]
[1737872024853,10.61395251,258.62,258.6,0.0001]
[1737872026942,6.74725251,258.62,258.6,0.0001]
[1737872027149,0.03,258.62,258.6,0.0001]
[1737872028941,6.74725251,258.62,258.6,0.0001]
[1737872029145,0.03,258.62,258.6,0.0001]
[1737872031338,6.74725251,258.62,258.6,0.0001]
[1737872034351,0.03,258.62,258.6,0.0001]
[1737872044246,6.74725251,258.62,258.6,0.0001]
[1737872045649,10.61395251,258.62,258.6,0.0001]
[1737872049265,0.03,258.62,258.6,0.0001]
[1737872056975,0.03,258.62,258.6,23.776984]
[1737872057969,0.03,258.62,258.61,29.144784]
[1737872065277,0.03,258.69,258.66,23.776884]
[1737872065777,0.03,258.69,258.64,20.0]
[1737872070580,0.03,258.69,258.62,3.8666]
[1737872075288,0.03,258.69,258.62,3.9296]
[1737872075499,0.03,258.69,258.62,27.706484]
[1737872075797,0.03,258.69,258.64,3.8663]
[1737872075977,0.03,258.69,258.65,23.776884]
[1737872077183,0.03,258.69,258.68,20.0]
[1737872078299,0.03,258.69,258.68,23.8657]
[1737872079205,0.03,258.69,258.68,47.642584]
[1737872080381,0.03,258.69,258.63,3.8665]
[1737872080787,0.03,258.69,258.65,23.776884]
[1737872082004,0.03,258.69,258.66,3.866]
[1737872095103,0.03,258.69,258.64,20.0]
[1737872095312,0.03,258.69,258.64,3.8663]
[1737872095806,0.03,258.69,258.62,0.063]
[1737872099614,6.71725251,258.68,258.62,0.063]
[1737872099805,0.03,258.69,258.62,3.9295]
[1737872100007,0.03,258.69,258.62,23.9295]
[1737872100193,0.03,258.69,258.63,23.776884]
[1737872101908,0.03,258.69,258.65,23.776884]
[1737872103108,0.03,258.69,258.64,3.8663]
[1737872103309,0.03,258.69,258.68,44.776884]
[1737872103310,0.0001,258.69,258.68,44.776884]
[1737872103511,0.03,258.76,258.75,20.0]
[1737872104630,0.03,258.76,258.75,23.8647]
[1737872105214,0.03,258.76,258.75,3.8647]
[1737872106397,0.03,258.76,258.75,27.641584]
[1737872106791,0.03,258.76,258.75,28.02792037]
[1737872106991,0.03,258.76,258.75,27.641584]
[1737872110115,0.03,258.76,258.75,28.02793389]
[1737872110594,0.03,258.76,258.75,58.02793389]
[1737872112017,0.0001,258.76,258.75,58.02793389]
[1737872115621,0.0001,258.76,258.75,27.641584]
[1737872119606,0.0001,258.76,258.71,3.8653]
[1737872120218,0.0001,258.76,258.75,20.0]
[1737872121218,0.0001,258.76,258.71,23.776884]
[1737872121821,0.0001,258.76,258.74,23.776884]
[1737872122625,0.0001,258.76,258.68,2.62]
[1737872122803,0.0001,258.76,258.67,0.38643156]
[1737872122998,0.0001,258.76,258.75,0.063]
[1737872124024,6.71735251,258.76,258.75,0.063]
[1737872125325,0.0001,258.76,258.75,0.063]
[1737872149843,3.8646,258.76,258.75,0.063]
[1737872151029,11.8648,258.76,258.75,0.063]
[1737872165253,21.5262,258.76,258.62,0.063]
[1737872165428,6.71725251,258.7,258.62,0.063]
[1737872166556,6.71725251,258.68,258.62,0.063]
[1737872167629,6.71725251,258.72,258.62,3.9295]
[1737872167832,6.71725251,258.72,258.63,23.776884]
[1737872168240,80.9,258.73,258.63,23.776884]
[1737872168628,6.71725251,258.72,258.63,23.776884]
[1737872168852,6.71725251,258.72,258.62,3.9295]
[1737872169657,6.71725251,258.7,258.62,3.9295]
[1737872170251,80.9,258.73,258.63,23.8664]
[1737872170446,8.0003,258.76,258.63,23.8664]
[1737872170749,6.4505,258.76,258.63,23.8664]
[1737872170948,6.4505,258.76,258.63,3.8664]
[1737872171156,6.4505,258.76,258.68,23.776884]
[1737872171839,6.4505,258.76,258.63,13.5327]
[1737872172144,13.16775251,258.76,258.66,20.0]
[1737872172332,13.16775251,258.76,258.67,20.0]
[1737872172933,13.16775251,258.76,258.66,3.8659]
[1737872173457,13.16775251,258.76,258.67,23.8658]
[1737872174959,13.16775251,258.76,258.68,23.776884]
[1737872175160,13.16775251,258.76,258.68,27.642584]
[1737872176959,13.16775251,258.76,258.72,23.776884]
[1737872176960,0.0001,258.76,258.72,23.776884]
[1737872178571,0.0001,258.76,258.73,20.0]
[1737872178736,0.0001,258.76,258.74,23.776884]
[1737872180241,0.0001,258.76,258.75,27.641584]
[1737872184256,0.0001,258.76,258.75,58.02789984]
[1737872185167,0.0001,258.76,258.75,59.54412993]
[1737872186865,0.0001,258.76,258.75,58.02789984]
[1737872188964,0.0001,258.76,258.75,34.25101584]
[1737872189170,0.0001,258.76,258.75,30.0]
[1737872189748,0.0001,258.76,258.72,20.063]
[1737872190263,0.0001,258.76,258.73,30.0]
[1737872190670,0.0001,258.76,258.74,23.776884]
[1737872192566,0.0001,258.76,258.75,30.0]
[1737872192746,0.0001,258.76,258.74,23.776884]
[1737872193266,0.0001,258.76,258.75,20.0]
[1737872193648,0.0001,258.76,258.75,43.776884]
[1737872195860,0.0001,258.76,258.75,73.776884]
[1737872196066,0.0001,258.76,258.75,50.0]
[1737872196453,0.0001,258.76,258.75,73.776884]
[1737872197269,0.0001,258.76,258.75,50.0]
[1737872197694,0.0001,258.76,258.75,73.776884]
[1737872199379,80.9,258.86,258.75,73.776884]
[1737872199584,0.03,258.87,258.8,20.0]
[1737872199754,0.03,258.87,258.8,50.0]
[1737872201382,0.03,258.87,258.8,53.8638]
[1737872203387,6.71725251,258.86,258.8,50.0]
[1737872203556,6.71725251,258.84,258.8,30.0]
[1737872203876,6.71725251,258.82,258.8,30.0]
[1737872204984,3.8638,258.81,258.8,30.0]
[1737872205881,3.8638,258.81,258.72,0.063]
[1737872206051,6.71725251,258.79,258.73,30.0]
[1737872207275,17.23795251,258.79,258.73,30.0]
[1737872207782,6.71725251,258.77,258.73,30.0]
[1737872209083,10.58165251,258.77,258.73,30.0]
[1737872209295,10.58165251,258.77,258.72,0.063]
[1737872210677,6.71725251,258.73,258.72,0.063]
[1737872211790,10.58225251,258.73,258.72,0.063]
[1737872212171,6.71725251,258.73,258.72,0.063]
[1737872212377,6.71725251,258.77,258.72,0.063]
[1737872214285,10.58165251,258.77,258.72,0.063]
[1737872215789,91.48165251,258.77,258.72,0.063]
[1737872221797,80.9,258.76,258.72,0.063]
[1737872221984,6.71725251,258.73,258.72,0.063]
[1737872222890,10.58225251,258.73,258.72,0.063]
[1737872223998,34.35913651,258.73,258.72,0.063]
[1737872224310,35.35913651,258.73,258.72,0.063]
[1737872224917,10.58225251,258.73,258.72,0.063]
[1737872228585,35.33373599,258.73,258.72,0.063]
[1737872228806,10.58225251,258.73,258.72,0.063]
[1737872229889,11.58225251,258.73,258.72,0.063]
[1737872230219,12.55685199,258.73,258.72,0.063]
[1737872231393,18.72865199,258.73,258.72,0.063]
[1737872232114,18.72865199,258.73,258.72,0.0001]
[1737872232514,16.75405251,258.73,258.72,0.0001]
[1737872241506,16.78405251,258.73,258.72,0.0001]
[1737872247823,0.03,258.73,258.72,0.0001]
[1737872252341,0.03,258.73,258.72,30.0001]
[1737872254846,0.03,258.73,258.72,31.6496]
[1737872255430,0.03,258.73,258.72,37.9743]
[1737872257134,0.03,258.73,258.72,7.9743]
[1737872258631,0.03,258.73,258.72,1.6496]
[1737872260113,0.03,258.73,258.72,31.6496]
[1737872260641,0.03,258.73,258.72,1.6496]
[1737872262722,0.03,258.73,258.72,0.0001]
[1737872285447,6.74725251,258.73,258.72,0.0001]
[1737872286144,30.52413651,258.73,258.72,0.0001]
[1737872286735,32.10113651,258.73,258.72,0.0001]
[1737872286940,35.96613651,258.73,258.72,0.0001]
[1737872289042,0.03,258.73,258.72,0.0001]
[1737872290339,6.74725251,258.73,258.72,0.0001]
[1737872295070,30.52413651,258.73,258.72,0.0001]
[1737872296480,31.52413651,258.73,258.72,0.0001]
[1737872297469,39.48933651,258.73,258.72,0.0001]
[1737872297672,67.33294603,258.73,258.72,0.0001]
[1737872298165,40.46393599,258.73,258.72,0.0001]
[1737872299845,67.33294603,258.73,258.72,0.0001]
[1737872300046,1.97459948,258.7,258.62,0.063]
[1737872300272,6.71725251,258.63,258.62,0.063]
[1737872301573,10.58375251,258.63,258.62,0.063]
[1737872305167,34.36063651,258.63,258.62,0.063]
[1737872306081,10.58375251,258.63,258.62,0.063]
[1737872315478,34.36063651,258.63,258.62,0.063]
[1737872315781,35.36063651,258.63,258.62,0.0001]
[1737872316677,34.36063651,258.63,258.62,0.0001]
[1737872318357,35.36063651,258.63,258.62,0.0001]
[1737872321984,10.58375251,258.63,258.62,0.0001]
[1737872322184,23.8665,258.63,258.62,0.0001]
[1737872323159,3.8665,258.63,258.62,0.0001]
[1737872325585,34.36063651,258.63,258.62,0.0001]
[1737872330097,1.0,258.6,258.51,0.063]
[1737872330267,6.71725251,258.54,258.51,0.063]
[1737872331892,6.71725251,258.57,258.51,0.063]
[1737872332191,6.71725251,258.61,258.51,0.063]
[1737872332988,6.71725251,258.64,258.52,1.5402]
[1737872333190,10.58365251,258.64,258.52,1.5402]
[1737872334082,10.58365251,258.64,258.52,5.4082]
[1737872334791,6.71725251,258.62,258.52,5.4082]
[1737872335598,10.58395251,258.62,258.52,5.4082]
[1737872337805,80.9,258.6,258.52,5.4082]
[1737872343700,80.9,258.59,258.52,5.4082]
[1737872345301,6.71725251,258.58,258.52,1.5402]
[1737872346215,84.7672,258.59,258.52,1.5402]
[1737872348609,6.71725251,258.57,258.52,1.5402]
[1737872349598,80.9,258.56,258.52,1.5402]
[1737872349990,84.7678,258.55,258.51,0.063]
[1737872350190,80.9,258.54,258.51,0.063]
[1737872351783,11.244446,258.62,258.51,3.9312]
[1737872351784,80.9,258.61,258.51,3.9312]
[1737872351990,0.03,258.62,258.51,3.9312]
[1737872351991,80.9,258.6,258.51,3.9312]
[1737872352197,80.9,258.6,258.52,1.6447]
[1737872355513,80.9,258.59,258.52,1.6447]
[1737872358423,91.48435251,258.59,258.52,1.6447]
[1737872360298,6.71725251,258.57,258.51,0.063]
[1737872361304,3.8675,258.56,258.51,0.063]
[1737872361499,80.9,258.55,258.51,0.063]
[1737872361711,80.9,258.54,258.51,0.063]
[1737872364720,80.9,258.54,258.51,3.9312]
[1737872366623,80.38972916,258.54,258.51,3.9312]
[1737872366926,80.38972916,258.54,258.53,3.868]
[1737872367306,80.38972916,258.61,258.53,3.868]
[1737872369229,80.38972916,258.61,258.54,1.5388]
[1737872369525,80.38972916,258.61,258.57,20.0]
[1737872371210,80.38972916,258.61,258.58,3.8672]
[1737872373426,0.03,258.62,258.61,20.0]
[1737872373726,0.03,258.73,258.61,21.91945881]
[1737872374626,0.03,258.73,258.62,3.8666]
[1737872375524,0.03,258.73,258.65,20.0]
[1737872378636,0.03,258.73,258.62,33.8666]
[1737872380033,6.74725251,258.73,258.62,33.8666]
[1737872380236,6.74725251,258.73,258.62,30.0]
[1737872380237,6.71725251,258.7,258.62,30.0]
[1737872380922,6.71725251,258.68,258.62,30.0]
[1737872381231,6.71725251,258.68,258.61,1.5329]
[1737872381940,6.71725251,258.66,258.54,7.6748]
[1737872382136,3.8662,258.65,258.55,3.8676]
[1737872382311,6.71725251,258.64,258.54,1.5917]
[1737872382713,6.71725251,258.62,258.54,1.5917]
[1737872383631,10.58395251,258.62,258.54,1.5917]
[1737872383935,80.38972916,258.67,258.57,20.0]
[1737872385041,80.38972916,258.67,258.54,1.6547]
[1737872385225,80.38972916,258.66,258.55,33.8677]
[1737872385418,0.03,258.62,258.55,33.8677]
[1737872387643,0.03,258.62,258.55,30.0]
[1737872388542,0.03,258.62,258.55,33.8676]
[1737872388716,0.03,258.62,258.55,3.8676]
[1737872391341,0.03,258.62,258.57,20.0]
[1737872391645,0.03,258.62,258.58,20.0]
[1737872392935,0.03,258.62,258.57,20.0]
[1737872393112,0.03,258.62,258.58,30.0]
[1737872394045,0.03,258.62,258.56,3.8674]
[1737872394886,0.03,258.62,258.58,20.0]
[1737872395834,0.03,258.62,258.59,47.643984]
[1737872396034,0.03,258.62,258.6,0.38660871]
[1737872396636,0.03,258.62,258.61,30.0]
[1737872397744,0.03,258.62,258.61,33.8668]
[1737872398244,0.03,258.62,258.61,30.0]
[1737872398637,0.03,258.62,258.57,23.8673]
[1737872399626,0.03,258.62,258.57,3.8673]
[1737872400042,0.03,258.62,258.57,23.8673]
[1737872401637,0.03,258.62,258.55,3.9306]
[1737872402373,0.03,258.62,258.55,0.063]
[1737872402543,0.03,258.62,258.55,30.063]
[1737872403633,3.8966,258.62,258.55,0.063]
[1737872404132,80.38972916,258.61,258.55,0.063]
[1737872405751,84.25662916,258.61,258.55,0.063]
[1737872407172,90.97388167,258.61,258.55,0.063]
[1737872407664,92.61428167,258.61,258.55,0.063]
[1737872409535,6.71725251,258.59,258.55,0.063]
[1737872410150,3.8672,258.58,258.55,0.063]
[1737872412161,84.25712916,258.57,258.55,0.063]
[1737872412536,80.38972916,258.57,258.55,0.063]
[1737872412937,84.25712916,258.57,258.55,0.063]
[1737872417867,80.38972916,258.56,258.55,0.063]
[1737872418070,3.8674,258.57,258.55,0.063]
[1737872419566,30.58465251,258.57,258.55,0.063]
[1737872420153,23.776884,258.56,258.55,0.063]
[1737872420559,10.58465251,258.57,258.55,0.063]
[1737872420875,3.8674,258.57,258.55,0.063]
[1737872422645,6.71725251,258.57,258.55,0.063]
[1737872423664,124.676884,258.56,258.55,0.063]
[1737872423862,128.544384,258.56,258.55,0.063]
[1737872426277,47.644384,258.56,258.55,0.063]
[1737872432681,3.8675,258.56,258.55,0.063]
[1737872432882,6.71725251,258.57,258.55,0.063]
[1737872433470,26.71725251,258.57,258.55,0.063]
[1737872435501,6.71725251,258.59,258.55,0.063]
[1737872435670,6.71725251,258.61,258.55,0.063]
[1737872437877,10.58405251,258.61,258.55,0.063]
[1737872438892,80.9,258.6,258.55,0.063]
[1737872439388,80.9,258.6,258.55,3.9306]
[1737872442070,80.9,258.6,258.55,33.9306]
[1737872442893,80.9,258.6,258.55,3.9306]
[1737872444296,0.03,258.62,258.56,20.0]
[1737872444597,0.03,258.62,258.56,20.38663738]
[1737872444766,0.03,258.62,258.56,50.38663738]
[1737872445691,0.03,258.62,258.6,20.0]
[1737872446092,0.03,258.62,258.61,4.25340694]
[1737872446874,0.03,258.62,258.61,34.25340694]
[1737872447299,0.03,258.62,258.61,24.25340694]
[1737872450299,0.03,258.62,258.61,34.25340694]
[1737872457985,0.03,258.62,258.61,58.03029094]
[1737872459002,0.03,258.62,258.61,59.03029094]
[1737872459321,0.0001,258.62,258.61,59.03029094]
[1737872463505,0.03,258.76,258.65,1.0]
[1737872463718,0.03,258.76,258.69,20.0]
[1737872463898,0.03,258.76,258.7,0.38645431]
[1737872465922,0.03,258.76,258.71,3.8653]
[1737872469621,0.03,258.76,258.75,43.776884]
[1737872470011,0.03,258.76,258.75,44.16319605]
[1737872471718,0.03,258.76,258.75,49.02789605]
[1737872473225,0.03,258.76,258.75,79.02789605]
[1737872475001,0.03,258.88,258.78,20.0]
[1737872475205,0.03,258.88,258.78,74.16313074]
[1737872476108,0.03,258.88,258.78,78.02733074]
[1737872476409,0.0001,258.79,258.78,82.16933074]
[1737872476608,0.03,258.88,258.82,21.0]
[1737872476913,0.03,258.88,258.86,43.776884]
[1737872477123,0.03,258.88,258.86,44.16303961]
[1737872477310,0.03,258.88,258.86,45.16303961]
[1737872477619,0.03,258.88,258.86,44.16303961]
[1737872477815,0.03,258.88,258.86,74.16303961]
[1737872478022,0.03,258.88,258.86,75.16303961]
[1737872478416,0.03,258.88,258.86,78.02603961]
[1737872478602,0.03,258.88,258.86,79.02603961]
[1737872488439,6.587,259.11,259.01,1.0]
[1737872488643,6.587,259.11,259.05,20.0]
[1737872488853,6.71725251,259.19,259.05,20.0]
[1737872488854,6.587,259.17,259.06,0.38587802]
[1737872489241,6.587,259.17,259.06,24.16276202]
[1737872490028,6.587,259.17,259.09,20.0]
[1737872490730,10.4455,259.17,259.02,3.8606]
[1737872490930,10.4455,259.17,259.03,30.0]
[1737872491131,10.4455,259.17,259.05,43.776884]
[1737872491333,17.16275251,259.17,259.05,20.0]
[1737872491527,6.587,259.17,259.06,0.3859245]
[1737872491727,6.587,259.17,259.06,20.3859245]
[1737872493351,6.587,259.17,259.1,20.0]
[1737872493938,10.4455,259.17,259.02,3.8606]
[1737872494138,10.4455,259.17,259.04,30.0]
[1737872494353,10.4455,259.17,259.07,20.0]
[1737872494545,10.4455,259.17,259.08,20.0]
[1737872496946,17.16275251,259.17,259.07,20.0]
[1737872497543,10.4455,259.17,259.07,20.0]
[1737872499757,80.9,259.16,259.04,30.0]
[1737872501737,3.8587,259.15,259.04,30.0]
[1737872503148,3.8587,259.15,259.06,20.0]
[1737872507364,3.8587,259.15,259.03,30.0]
[1737872509641,13.33425251,259.17,259.03,30.0]
[1737872509642,6.71725251,259.1,259.03,30.0]
[1737872510038,6.71725251,259.1,258.97,3.8613]
[1737872510039,80.9,259.09,258.98,20.0]
[1737872510263,80.9,259.09,258.92,2.6521]
[1737872510264,7.6981,259.08,258.99,30.0]
[1737872510449,14.41535251,259.08,258.99,30.0]
[1737872511770,3.8599,259.07,258.97,20.0]
[1737872517472,3.8599,259.07,258.94,0.063]
[1737872517665,3.8599,259.07,258.97,20.0]
[1737872518171,6.71725251,259.06,258.97,20.0]
[1737872519071,6.71725251,259.04,258.94,30.063]
[1737872519574,6.71725251,259.04,258.94,0.063]
[1737872521049,3.8605,259.03,258.94,20.063]
[1737872522072,3.8605,259.03,258.94,0.063]
[1737872522658,6.71725251,259.02,258.94,0.063]
[1737872522975,6.6546,259.01,258.94,0.063]
[1737872529586,1.5561,258.99,258.94,0.063]
[1737872531487,3.8613,258.98,258.94,0.063]
[1737872536391,6.71725251,258.96,258.94,0.063]
[1737872536785,80.9,258.95,258.94,0.063]
[1737872540297,1.5561,258.99,258.94,0.063]
[1737872540789,87.5546,259.01,258.94,3.9248]
[1737872540995,80.9,259.05,258.95,0.38611639]
[1737872542400,80.9,259.05,258.98,20.0]
[1737872542696,6.71725251,259.1,258.98,20.0]
[1737872543270,12.99195251,259.12,258.99,20.38599968]
[1737872543679,3.8594,259.11,258.99,20.38599968]
[1737872543884,6.71725251,259.08,258.96,3.8616]
[1737872545374,10.57705251,259.08,258.96,3.8616]
[1737872545788,10.57705251,259.08,259.0,20.0]
[1737872546695,10.57705251,259.08,258.97,33.8613]
[1737872551582,80.9,259.07,258.97,33.8613]
[1737872552305,80.9,259.07,258.97,3.8613]
[1737872554313,80.9,259.07,258.94,20.063]
[1737872554600,12.77865251,259.03,258.94,3.9248]
[1737872556798,6.0614,259.03,258.94,3.9248]
[1737872564197,12.77865251,259.03,258.94,3.9248]
[1737872569907,16.63915251,259.03,258.94,3.9248]
[1737872573609,9.9219,259.03,258.94,3.9248]
[1737872574122,16.63915251,259.03,258.94,3.9248]
[1737872581218,80.9,259.02,258.94,3.9248]
[1737872581416,87.61725251,259.01,258.94,0.063]
[1737872581721,6.71725251,258.97,258.94,0.063]
[1737872584625,91.47845251,258.99,258.94,0.063]
[1737872587309,80.9,258.98,258.94,0.063]
[1737872589915,80.9,258.98,258.94,3.9248]
[1737872590736,6.0614,259.03,258.94,3.9248]
[1737872590923,0.03,259.03,258.94,3.9248]
[1737872591125,0.03,259.03,258.94,4.31086393]
[1737872591319,0.03,259.03,258.94,13.96556393]
[1737872592116,0.03,259.03,258.95,30.0]
[1737872592946,0.03,259.03,258.96,3.8616]
[1737872593121,0.03,259.03,258.96,33.8616]
[1737872594029,0.03,259.03,258.96,30.0]
[1737872594618,0.03,258.98,258.96,30.0]
[1737872595526,0.03,258.98,258.95,3.8617]
[1737872600260,0.03,258.98,258.95,4.24775973]
[1737872600575,0.03,258.98,258.96,30.0]
[1737872600958,0.03,258.98,258.97,0.3860472]
[1737872601550,0.03,258.98,258.97,33.8614]
[1737872601732,0.03,258.98,258.97,30.0]
[1737872602135,0.03,258.98,258.94,0.063]
[1737872602335,0.03,258.98,258.94,30.063]
[1737872603648,0.03,258.98,258.94,0.063]
[1737872603969,0.03,258.98,258.94,3.9248]
[1737872607581,0.03,258.98,258.96,20.0]
[1737872608897,0.03,258.98,258.97,20.38604771]
[1737872609200,0.03,258.98,258.97,50.38604771]
[1737872609904,0.03,259.03,258.98,23.776884]
[1737872610100,0.03,259.03,259.01,20.0]
[1737872610480,0.03,259.03,259.01,20.38594649]
[1737872611072,0.03,259.03,259.01,50.38594649]
[1737872611767,0.03,259.03,259.02,3.8607]
[1737872611967,0.03,259.03,259.02,33.8607]
[1737872612164,0.03,259.03,259.02,30.0]
[1737872615871,0.03,259.03,259.02,20.0]
[1737872616577,0.03,259.03,259.01,3.8607]